Cogmind - Beta 14 @@@ ROGUE MODE // 2024.11.16 @ 19:57:38 Player: Mathewnd Result: Destroyed by X-72 Disruptor with Arc Projector Performance ------------- Evolutions (4) 2000 Regions Visited (7) 1400 Robots Destroyed (15) 75 Value Destroyed (601) 601 Prototype IDs (23) 460 Alien Tech Used (0) 0 Bonus (300) 300 TOTAL SCORE: 4836 Bonus ------- Aligned with FarCom 300 Cogmind --------- Core Integrity 0/850 Matter 197/300 Energy 100/100 System Corruption 7% Temperature Cool (0) Movement Core (200) Ox3 Location -6/Factory Parts ------- > --- POWER (2) -------- (None) > --- PROPULSION (5) --- (None) > --- UTILITY (5) ------ Improved Field Recycling Unit > --- WEAPON (3) ------- (None) > --- INVENTORY (5) ---- Core Analyzer Trap Reconfigurator Peak State ------------ > --- POWER ------------ Light Antimatter Reactor Light Antimatter Reactor > --- PROPULSION ------- Aluminum Leg Carbon-fiber Leg VSS Leg Improved Carbon-fiber Leg Flexi-carbon Leg > --- UTILITY ---------- Small Storage Unit Advanced Targeting Computer Improved Shield Generator Trap Reconfigurator Improved Field Recycling Unit > --- WEAPON ----------- Lightning Gun Improved EM Pulse Cannon Heavy Flak Cannon > --- INVENTORY -------- Light Antimatter Reactor Light Antimatter Reactor Aluminum Leg Improved Heat Sink Core Analyzer Force Field EM Pulse Cannon [Rating: 67] Favorites ----------- Power Light Antimatter Reactor Engine Ion Engine Power Core Light Nuclear Core Reactor Light Antimatter Reactor Propulsion Aluminum Leg Leg Aluminum Leg Utility Small Storage Unit Device ECM Suite Storage Small Storage Unit Processor Advanced Targeting Computer Weapon Small Laser Energy Gun Small Laser Energy Cannon Improved EM Pulse Cannon Ballistic Gun Minigun Ballistic Cannon Heavy Flak Cannon Launcher Rocket Launcher Build | -11 -10 -10 -10 -9 -8 -7 -6 ------- Run | Yrd Mat Min Exi Min Mat Fac Fac Slots Evolved 8 | . . . . . 4 2 2 Power 1 | . . . . . . 1 . Propulsion 3 | . . . . . 2 . 1 Utility 3 | . . . . . 1 1 1 Weapon 1 | . . . . . 1 . . Parts Attached 51 | 3 4 . . 12 8 9 15 Power 12 | . 1 . . 3 1 3 4 Engine 7 | . 1 . . 2 1 3 . Core 1 | . . . . 1 . . . Reactor 4 | . . . . . . . 4 Propulsion 13 | 2 . . . 2 3 3 3 Treads . | . . . . . . . . Leg 13 | 2 . . . 2 3 3 3 Wheel . | . . . . . . . . Hover . | . . . . . . . . Flight . | . . . . . . . . Utility 9 | 1 1 . . . 1 1 5 Device 7 | . 1 . . . 1 . 5 Storage 1 | 1 . . . . . . . Processor 1 | . . . . . . 1 . Hackware . | . . . . . . . . Protection . | . . . . . . . . Artifact . | . . . . . . . . Weapon 17 | . 2 . . 7 3 2 3 Energy Gun 7 | . 1 . . 5 . 1 . Energy Cannon 3 | . . . . . 1 . 2 Ballistic Gun 3 | . 1 . . . 1 1 . Ballistic Cannon 1 | . . . . . . . 1 Launcher 3 | . . . . 2 1 . . Special Weapon . | . . . . . . . . Impact Weapon . | . . . . . . . . Slashing Weapon . | . . . . . . . . Piercing Weapon . | . . . . . . . . Special Melee Weapon . | . . . . . . . . Unidentified Prototypes . | . . . . . . . . Parts Lost 28 | . . . . 7 1 . 20 Power 5 | . . . . 1 . . 4 Propulsion 7 | . . . . 1 . . 6 Utility 6 | . . . . . . . 6 Weapon 10 | . . . . 5 1 . 4 Highest Loss Streak 17 | . . . . 4 1 . 17 To Critical Strikes . | . . . . . . . . Average Slot Usage (%) 96 | . 73 100 100 94 96 99 94 Engine 9 | . 5 14 14 12 9 15 3 Reactor 2 | . . . . . . . 8 Leg 30 | . 28 28 28 26 36 29 30 Device 16 | . 4 14 14 14 18 15 19 Storage 9 | . 14 14 14 14 9 7 6 Processor 2 | . . . . . . 7 6 Energy Gun 9 | . 9 14 14 15 9 7 5 Energy Cannon 2 | . . . . . 1 7 5 Ballistic Gun 5 | . 11 14 14 1 6 6 . Ballistic Cannon 1 | . . . . . . . 5 Launcher 2 | . . . . 8 6 . . Peak Build Rating 67 | 3 7 7 8 10 26 41 67 Average Rating 27 | 2 5 7 7 7 23 38 56 On Entrance 12 | . 3 7 7 8 7 26 41 Naked Turns . | . . . . . . . . Heaviest Build 65 | 5 16 16 16 16 25 33 65 Greatest Support 75 | 20 20 20 20 20 40 55 75 Greatest Overweight (x) 8 | . . . . 1 . . 8 Average Overweight (x) . | . . . . . . . . Largest Inventory Capacity 8 | 8 8 8 8 8 8 8 8 Average Capacity 7 | 7 8 8 8 8 8 8 7 Most Carried 8 | 7 8 5 6 7 7 8 8 Average Carried 6 | 5 5 5 5 5 5 7 7 Final Capacity 8 | 8 8 8 8 8 8 8 5 Final Carried 8 | 7 5 5 6 7 6 8 2 Class Distribution -------------------- 41% | Mutant 33% | Skirmisher 15% | Scavenger-Skirmisher 9% | Scavenger-Mutant Dominant Class ---------------- Mutant | -10/Materials Mutant | -10/Mines Mutant | -10/Exiles Mutant | -9/Mines Scavenger-Skirmisher | -8/Materials Skirmisher | -7/Factory Skirmisher | -6/Factory Resources | -11 -10 -10 -10 -9 -8 -7 -6 ----------- Run | Yrd Mat Min Exi Min Mat Fac Fac Matter Collected 670 | 184 . . . 247 50 . 189 Remotely . | . . . . . . . . Salvage Created 554 | . . 10 . 282 50 . 212 Parts 35 | . . 1 . 18 5 . 11 Haulers Intercepted . | . . . . . . . . Recyclers Shooed . | . . . . . . . . Parts Field Recycled 5 | . . . . . . . 5 Retrieved Matter 39 | . . . . . . . 39 Parts Self-Destructed . | . . . . . . . . Prevented . | . . . . . . . . Kills | -11 -10 -10 -10 -9 -8 -7 -6 ------- Run | Yrd Mat Min Exi Min Mat Fac Fac Combat Hostiles Destroyed 20 | . . 1 . 12 1 . 6 Guns 10 | . . 1 . 7 1 . 1 Cannons 5 | . . . . . . . 5 AOE 5 | . . . . 5 . . . Classes Destroyed 7 | . . 1 . 3 1 . 2 Tunneler 1 | . . . . 1 . . . Swarmer 2 | . . 1 . . . . 1 Grunt 8 | . . . . 6 . . 2 Sentry 1 | . . . . . 1 . . Specialist 1 | . . . . . . . 1 Programmer 2 | . . . . . . . 2 Assembled 6 | . . . . 6 . . . Best Kill Streak 6 | . . 1 . 6 1 . 3 Combat Bots Only 6 | . . 1 . 6 1 . 3 Max Kills in Single Turn 3 | . . 1 . 3 1 . 1 Gunslinging . | . . . . . . . . Exploded 3 | . . . . 3 . . . Melee . | . . . . . . . . Uniques/NPCs Destroyed . | . . . . . . . . Combat | -11 -10 -10 -10 -9 -8 -7 -6 -------- Run | Yrd Mat Min Exi Min Mat Fac Fac Hostile Shots Fired 341 | . . 1 . 79 31 9 221 Missed 77 | . . 1 . 17 8 4 47 Damage Taken 3859 | . . . . 950 338 31 2540 Core 1136 | . . . . 224 61 . 851 Absorbed by Shields 112 | . . . . . . . 112 Core Remaining (%) 74 | 100 . . . 10 88 100 . Volleys Fired 67 | . . 1 . 31 8 . 27 Largest 3 | . . 2 . 2 2 . 3 Hottest 185 | . . 70 . 80 65 . 185 Shots Fired 115 | . . 2 . 57 16 . 40 Gun 75 | . . 2 . 53 16 . 4 Cannon 36 | . . . . . . . 36 Launcher 4 | . . . . 4 . . . Special . | . . . . . . . . Kinetic 47 | . . 1 . 11 8 . 27 Thermal 51 | . . 1 . 42 8 . . Explosive 4 | . . . . 4 . . . Electromagnetic 13 | . . . . . . . 13 Robot Hit Streak 15 | . . 1 . 15 12 . 7 Robot Miss Streak 7 | . . 1 . 3 1 . 7 Penetration Max . | . . . . . . . . Secondary Targets . | . . . . . . . . Shots Hit Robots 85 | . . 1 . 39 13 . 32 Core Hits 67 | . . 1 . 24 3 . 39 Critical Kills 1 | . . . . 1 . . . Critical Parts Destroyed . | . . . . . . . . Critical Strikes 2 | . . . . 2 . . . Burn 1 | . . . . 1 . . . Destroy 1 | . . . . 1 . . . Melee Attacks . | . . . . . . . . Impact . | . . . . . . . . Slashing . | . . . . . . . . Piercing . | . . . . . . . . Sneak Attacks . | . . . . . . . . Combat Hostiles . | . . . . . . . . Follow-up Attacks . | . . . . . . . . Damage Inflicted 1714 | . . 11 . 743 213 . 747 Guns 648 | . . 11 . 438 191 . 8 Cannons 731 | . . . . . . . 731 Explosions 301 | . . . . 301 . . . Melee . | . . . . . . . . Ramming 34 | . . . . 4 22 . 8 Kinetic 880 | . . 11 . 104 124 . 641 Thermal 401 | . . . . 334 67 . . Explosive 301 | . . . . 301 . . . Electromagnetic 98 | . . . . . . . 98 Impact . | . . . . . . . . Slashing . | . . . . . . . . Piercing . | . . . . . . . . Highest Corruption 7 | . . . . . . . 7 Average Corruption 2 | . . . . . . . 2 Corruption Purged . | . . . . . . . . Corruption Blocked . | . . . . . . . . Effects 4 | . . . . . . . 4 Message Errors 2 | . . . . . . . 2 Matter Fused 1 | . . . . . . . 1 Heat Flow Errors 1 | . . . . . . . 1 Overload Shots . | . . . . . . . . Overflow Damage 8 | . . . . 8 . . . Projectiles . | . . . . . . . . Explosions 8 | . . . . 8 . . . Melee . | . . . . . . . . Knockbacks 9 | . . . . . . . 9 Impact . | . . . . . . . . Kinetic 8 | . . . . . . . 8 Secondary 1 | . . . . . . . 1 Self-Inflicted Damage 17 | . . . . 17 . . . Shots 1 | . . . . 1 . . . Rammed 9 | . . . . . . . 9 Targets Rammed 20 | . . . . 1 6 . 13 Kicked 11 | . . . . 1 6 . 4 Crushed . | . . . . . . . . Highest Temperature 300 | . . 9 . 300 60 . 291 Average Temperature 137 | . . 6 . 98 29 . 178 Received Heat Transfer 1002 | . . . . 403 153 6 440 Effects 7 | . . . . . . . 7 Energy Bleed 3 | . . . . . . . 3 Interference 4 | . . . . . . . 4 Siege Activations . | . . . . . . . . Robots Corrupted . | . . . . . . . . Combat Hostiles . | . . . . . . . . Parts Fried . | . . . . . . . . Impact Corruptions . | . . . . . . . . Robots Melted . | . . . . . . . . Combat Hostiles . | . . . . . . . . Parts Melted . | . . . . . . . . Heat Transferred 1045 | . . . . 895 150 . . Parts Sabotaged . | . . . . . . . . Parts Stolen . | . . . . . . . . Parts Stripped . | . . . . . . . . Power Chain Reactions . | . . . . . . . . Alert | -11 -10 -10 -10 -9 -8 -7 -6 ------- Run | Yrd Mat Min Exi Min Mat Fac Fac Peak Influence 111 | . . 30 . 81 111 15 100 Initial 17 | . . . . . 17 15 7 Average 26 | . . 30 . 46 33 13 22 Maximum Alert Level . | . . . . . . . . Low Security (%) 100 | 100 100 100 . 100 100 100 100 Level 1 . | . . . . . . . . Level 2 . | . . . . . . . . Level 3 . | . . . . . . . . Level 4 . | . . . . . . . . Level 5 . | . . . . . . . . High Security . | . . . . . . . . Max Security . | . . . . . . . . Squads Dispatched 6 | . . . . . 4 . 2 Investigation . | . . . . . . . . Extermination 1 | . . . . . . . 1 Reinforcement 2 | . . . . . 1 . 1 Assault . | . . . . . . . . Garrison 3 | . . . . . 3 . . Intercept . | . . . . . . . . Searches Triggered . | . . . . . . . . Construction Impeded . | . . . . . . . . Haulers Reinforced . | . . . . . . . . Active Scanning Responses . | . . . . . . . . Cargo Convoy Interrupts 1 | . . . . . . . 1 Stealth | -11 -10 -10 -10 -9 -8 -7 -6 --------- Run | Yrd Mat Min Exi Min Mat Fac Fac Distress Signals 1 | . . . . . . . 1 Communications Jammed . | . . . . . . . . Distress Signals . | . . . . . . . . Times Spotted 53 | . 2 2 . 18 10 1 20 Peak Tracking Total 8 | . 1 2 . 4 3 1 8 Tactical Retreats 13 | . . . . 4 7 . 2 Traps | -11 -10 -10 -10 -9 -8 -7 -6 ------- Run | Yrd Mat Min Exi Min Mat Fac Fac Traps Triggered 3 | . . . . . . 1 2 Indirectly . | . . . . . . . . Trap Hack Attempts . | . . . . . . . . Triggered . | . . . . . . . . Disarmed . | . . . . . . . . Reprogrammed . | . . . . . . . . Reused 1 | . . . . . . . 1 Traps Reconfigurated 8 | . . . . . . 1 7 Traps Extracted . | . . . . . . . . Installed . | . . . . . . . . Triggered 2 | . . . . . . . 2 Machines | -11 -10 -10 -10 -9 -8 -7 -6 ---------- Run | Yrd Mat Min Exi Min Mat Fac Fac Machines Disabled . | . . . . . . . . Max in Single Turn . | . . . . . . . . Machines Repaired . | . . . . . . . . Machines Dismantled . | . . . . . . . . Machines Sabotaged . | . . . . . . . . Overloaded Fab Kills . | . . . . . . . . Hacking | -11 -10 -10 -10 -9 -8 -7 -6 --------- Run | Yrd Mat Min Exi Min Mat Fac Fac Machines Accessed 11 | . 1 . 5 . 2 2 1 Terminals 5 | . 1 . . . 2 2 . Fabricators 1 | . . . . . . . 1 Repair Stations . | . . . . . . . . Recycling Units . | . . . . . . . . Scanalyzers . | . . . . . . . . Garrison Access . | . . . . . . . . Total Hacks 61 | . 1 . 50 . 6 3 1 Successful 57 | . 1 . 50 . 4 1 1 Failed 4 | . . . . . 2 2 . Catastrophic 1 | . . . . . . 1 . Database Lockouts . | . . . . . . . . Manual 1 | . . . 1 . . . . Terminals 10 | . 1 . . . 6 3 . Fabricators 1 | . . . . . . . 1 Repair Stations . | . . . . . . . . Recycling Units . | . . . . . . . . Scanalyzers . | . . . . . . . . Garrison Access . | . . . . . . . . Terminal Hacks 56 | . 1 . 50 . 4 1 . Record 51 | . . . 49 . 2 . . Emergency Access Points 1 | . . . . . 1 . . Alert Level 1 | . . . . . . 1 . Locate Traps 1 | . 1 . . . . . . Dispatch Records 1 | . . . . . 1 . . Derelict Proto ID Bank 1 | . . . 1 . . . . Fabricator Hacks 1 | . . . . . . . 1 Network Status 1 | . . . . . . . 1 Repair Station Hacks . | . . . . . . . . Recycling Unit Hacks . | . . . . . . . . Scanalyzer . | . . . . . . . . Garrison Access Hacks . | . . . . . . . . Unauthorized Hacks . | . . . . . . . . Terminals . | . . . . . . . . Fabricators . | . . . . . . . . Repair Stations . | . . . . . . . . Recycling Units . | . . . . . . . . Scanalyzers . | . . . . . . . . Garrison Access . | . . . . . . . . Data Cores Recovered . | . . . . . . . . Used . | . . . . . . . . Hacking Detections 5 | . . . . . 2 2 1 Full Trace Events . | . . . . . . . . Feedback Events . | . . . . . . . . Feedback Blocked . | . . . . . . . . Robot Schematics Acquired . | . . . . . . . . Robots Built . | . . . . . . . . Authchips . | . . . . . . . . Time . | . . . . . . . . Total Robot Build Rating . | . . . . . . . . Part Schematics Acquired . | . . . . . . . . Parts Built . | . . . . . . . . Authchips . | . . . . . . . . Time . | . . . . . . . . Total Part Build Rating . | . . . . . . . . Parts Repaired . | . . . . . . . . Time . | . . . . . . . . Parts Recycled . | . . . . . . . . Recycled Matter . | . . . . . . . . Retrieved Matter . | . . . . . . . . Retrieved Components . | . . . . . . . . Parts Scanalyzed . | . . . . . . . . Part Schematics Acquired . | . . . . . . . . Parts Damaged . | . . . . . . . . Bothacking | -11 -10 -10 -10 -9 -8 -7 -6 ------------ Run | Yrd Mat Min Exi Min Mat Fac Fac Used RIF Installer . | . . . . . . . . Robots Hacked . | . . . . . . . . Non-combat . | . . . . . . . . Combat . | . . . . . . . . Robot Hacks Applied . | . . . . . . . . Relay Couplers Released . | . . . . . . . . Fabnet Peak Effective % . | . . . . . . . . Robots Rewired . | . . . . . . . . Allies Hacked . | . . . . . . . . Hacks Repelled . | . . . . . . . . Allies | -11 -10 -10 -10 -9 -8 -7 -6 -------- Run | Yrd Mat Min Exi Min Mat Fac Fac Total Allies . | . . . . . . . . Largest Group . | . . . . . . . . Highest-Rated Group . | . . . . . . . . Highest-Rated Ally . | . . . . . . . . Total Orders . | . . . . . . . . Ally Attacks . | . . . . . . . . Total Damage . | . . . . . . . . Kills . | . . . . . . . . Allies Corrupted . | . . . . . . . . Allies Melted . | . . . . . . . . Intel | -11 -10 -10 -10 -9 -8 -7 -6 ------- Run | Yrd Mat Min Exi Min Mat Fac Fac Robot Analysis Total . | . . . . . . . . Derelict Logs Recovered . | . . . . . . . . Drone Launches . | . . . . . . . . Drone Recoveries . | . . . . . . . . Exploration | -11 -10 -10 -10 -9 -8 -7 -6 ------------- Run | Yrd Mat Min Exi Min Mat Fac Fac Turns Passed 3901 | 133 100 94 743 525 732 435 1139 Spaces Moved 2672 | 103 79 75 619 329 483 369 615 Core 17 | 10 . . . . . . 7 Treads . | . . . . . . . . Legs 2655 | 93 79 75 619 329 483 369 608 Wheels . | . . . . . . . . Hover . | . . . . . . . . Flight . | . . . . . . . . Fastest Speed 50 | 50 120 120 120 120 120 110 112 Average Speed 118 | 113 120 120 120 122 120 111 117 Slowest Speed 450 | 120 120 120 120 190 120 112 450 Overloaded Moves . | . . . . . . . . Propulsion Burnouts . | . . . . . . . . Robots Hopped . | . . . . . . . . Cave-ins Triggered . | . . . . . . . . Exploration Rate (%) 32 | 5 32 30 93 49 32 7 13 Regions Visited 7 Branch Regions 3 Pre-discovered Areas 1 | . . . 1 . . . . Known Exits Taken . | . . . . . . . . Unknown Exits Taken 7 | 1 1 1 1 1 1 1 . Scrap Searched 1 | . . . . 1 . . . Spaces Dug . | . . . . . . . . Terrain Destroyed 23 | . . . . 23 . . . Melee . | . . . . . . . . Projectile . | . . . . . . . . AOE 23 | . . . . 23 . . . Terrain Rammed . | . . . . . . . . Walls Destroyed . | . . . . . . . . Machines Disabled . | . . . . . . . . Actions | -11 -10 -10 -10 -9 -8 -7 -6 --------- Run | Yrd Mat Min Exi Min Mat Fac Fac Total 3282 | 119 84 77 619 396 621 391 975 Wait 403 | 4 . 2 . 7 109 . 281 Move 2665 | 102 78 74 618 328 482 368 615 Hop . | . . . . . . . . Pick Up 52 | 10 2 . 1 11 6 9 13 Fast Attach . | . . . . . . . . Attach 47 | 3 4 . . 12 8 6 14 Detach 5 | . . . . 2 1 2 . Swap 4 | . . . . . . 3 1 Drop 19 | . . . . 4 1 3 11 Fire 67 | . . 1 . 31 8 . 27 Melee . | . . . . . . . . Ram 9 | . . . . . . . 9 Kick 11 | . . . . 1 6 . 4 Crush . | . . . . . . . . Escape Stasis . | . . . . . . . . Rewire . | . . . . . . . . Trap . | . . . . . . . . Miscellaneous . | . . . . . . . . Route ------- -11/Scrapyard -10/Materials -10/Mines -10/Exiles (discovered 2 exits: [*Min x2]) -9/Mines -8/Materials -7/Factory -6/Factory History --------- Turn | Location | Event 4 | -11/Scrapyard | Discovered new exit (range 15) 134 | -11/Scrapyard | Entered Materials 228 | -10/Materials | Discovered new exit (range 5) 229 | -10/Materials | Met 8R-AWN 234 | -10/Materials | Entered Mines 237 | -10/Mines | Followed 8R-AWN into the Mines 318 | -10/Mines | Build established: Mutant 322 | -10/Mines | Discovered new exit (range 5) 328 | -10/Mines | Entered Exiles 348 | -10/Exiles | Discovered new exit (range 15) 361 | -10/Exiles | Welcomed by 8R-AWN 381 | -10/Exiles | Met EX-HEX 445 | -10/Exiles | Met EX-DEC 484 | -10/Exiles | Learned location of Zion (-7) 540 | -10/Exiles | Discovered new exit (range 14) 631 | -10/Exiles | Visited The Gauntlet 812 | -10/Exiles | Met EX-BIN 871 | -10/Exiles | Aligned with FarCom system 872 | -10/Exiles | Given EX-Vault access code 936 | -10/Exiles | Opened EX-Vault 958 | -10/Exiles | Found Trap Reconfigurator 985 | -10/Exiles | Warned to stay clear of 0b10 Research branches 1071 | -10/Exiles | Left Exiles lab with Trap Reconfigurator 1071 | -10/Exiles | Entered Mines 1072 | -9/Mines | Assembled infested the area 1140 | -9/Mines | Core integrity fell below 50% 1169 | -9/Mines | Lost 4 parts (1p1n2w) 1475 | -9/Mines | Core integrity fell below 20% 1584 | -9/Mines | Discovered new exit (range 5) 1590 | -9/Mines | Received a Rocket Launcher from a helpful Derelict 1596 | -9/Mines | Entered Materials 1596 | -8/Materials | Evolved 4 slots: Propulsion x2, Utility x1, Weapon x1 1789 | -8/Materials | Build established: Scavenger-Mutant 2098 | -8/Materials | Garrison activated, responded to threat 2250 | -8/Materials | Discovered new exit (range 10) 2328 | -8/Materials | Entered Factory 2328 | -7/Factory | Evolved 2 slots: Power x1, Utility x1 2456 | -7/Factory | Build established: Scavenger-Skirmisher 2497 | -7/Factory | Discovered new exit (range 15) 2763 | -7/Factory | Entered another Factory area 2763 | -6/Factory | Evolved 2 slots: Propulsion x1, Utility x1 2785 | -6/Factory | Build established: Skirmisher 3613 | -6/Factory | Cargo convoy interrupted 3851 | -6/Factory | Core integrity fell below 50% 3888 | -6/Factory | Core integrity fell below 20% 3902 | -6/Factory | Destroyed by X-72 Disruptor with Arc Projector Last Messages --------------- Penetrated by Slug. Manufacturing Mainframe disabled. M-28 Smith repairs X-72 Disruptor. Penetrated by Slug. Force Field destroyed. Slug penetrates Manufacturing Mainframe. Penetrated by Slug. M-28 Smith repairs X-62 Marksman. Slug penetrates Wall. Imp. Cooling System destroyed. Slug penetrates X-72 Disruptor. Penetrated by Slug. M-28 Smith repairs X-72 Disruptor. Slammed into X-72 Disruptor. Penetrated by Slug. Slammed into H-66 Slayer. Penetrated by Slug. Sml. Storage Unit destroyed. Slammed into M-28 Smith. Adv. Targeting Computer destroyed. Map ----- +----------------------------------------------------+ | ???####+######???? #???????????????????????????? | | ???# #???? #?##????????????????????????? | | ???# #???? ##"""???????????????????????? | | ???# #???# ???????????????????????? | | ???# #???# ??????????? ??????????? | | ???# #???# ?????????? ??????????? | | ???# #???# ?????????? ???????????? | | ???# #?### """" ""???????? ???????????? | | ##?# #?# """" """" ""?? ????????????? | | #######+####### """" """" """" ????????????? | | w ?????????????? | | "" "" """" ?????????????? | | %= ""T"" """" ??????????????? | | # T############ """ """" ??????????????? | | #####??????????# ??????????????? | | #??????????????# | ???????????????? | | #??????????????# #########+#####???????????? | | #??????????????# #???# #???????????? | | ################ #???# #???????????? | | ##### #???????????? | | + #???????????? | | ######################???????????? | | """ # #??????????????????????? | | """ # x #??????????????????????? | | # """ # phm#??????????????????????? | | ? """ # """"@#??????????????????????? | | # + """"x#??????????????????????? | | # """ # """x#??????????????????????? | | ? """ # """" #??????????????????????? | | ? """ ######### #??????????????????????? | | ?? """ ?###########+######??????????????????????? | | ???? ?# ## #######?????????????????????? | | ??? ! ??# """ """ ## # #?????????????????????? | | ?? ???# """ "Y" ## # #?????????????????????? | | ????????# """ " " ##*# #?????????????????????? | | ????????+ "" ##[# #?????????????????????? | | ????????# "" ##%# #?????????????????????? | | ????????# = ##*/ #?????????????????????? | | ????????# ! = ##!# #?????????????????????? | | ????????#########+## # #?????????????????????? | | ????????????????# %/ #???? ????????????????? | | ????????????????# # #??? ????????????????? | | ???????########## ######### #?????????????????? | | ?????### #?????????????????? | | ??? #?????????????????? | | ??? ^ #?????????????????? | | ???" #?????????????????? | | ???? ^ ###### #?????????????????? | | ???? #????????????????????????? | | ???? #????????????????????????? | +----------------------------------------------------+ Best States ------------- Heat Dissipation 64 Energy Generation 37 Energy Capacity 415 Matter Stores 300 Matter Capacity 300 Sight Range 16 Terrain Scan Density 10 ECM Strength 1 Evasion (%) 55 Targeting Accuracy 8 Item Schematics ----------------- None Robot Schematics ------------------ None Fabricated ------------ Nothing Alien Tech Used ----------------- None Achievements -------------- I Survived The Infestation Librarian Serviceable Loadout Troublemaker Challenges ------------ None Game ------ Seed DimensionalJunkDoublenader Manual? 0 Play Time 01:11:29 Cumulative 3.7 hours Start 2024.11.16 @ 18:26:56 End 2024.11.16 @ 19:57:38 Sessions 1 Manual Loads 0 Difficulty Rogue Special Mode None Game No. 4 Rogue 4 Adventurer 0 Explorer 0 Win Type - Total 0 Types 0/0/0/0/0/0/0/0/0 Lore% 7 Gallery% 5 Achievement% 5 Wizard Run 0 Options --------- Layout 1 ASCII 0 Keyboard 0 Movement Mouse Keybinds 0 Fullscreen 1 Font 24/Smallcaps Map View 50x35 Zoom Use 0% Tactical HUD 0 Map Filters NONE Filters NONE Steam 1 RUN: 5568e4b4-928a-4db6-8f1c-412df843f93c